fUST/lending_fUST_20250929
["ID","MTS","AMOUNT","RATE_DAILY","PERIOD"]
[388347583,1759114246622,-1000.0,0.00025798,2]
[388347585,1759114246631,-1000.0,0.00025798,2]
[388347587,1759114246641,-1000.0,0.00025798,2]
[388347589,1759114246651,-1000.0,0.00025798,2]
[388347591,1759114246660,-1000.0,0.00025798,2]
[388347593,1759114246669,-1000.0,0.00025798,2]
[388347595,1759114246679,-762.57765493,0.00025798,2]
[388347597,1759114246688,-586.4142127,0.00025991,2]
[388347599,1759114246697,-829.8609377,0.00025991,2]
[388347601,1759114246706,-530.59157019,0.00025991,2]
[388347603,1759114246715,-829.04932842,0.00025991,2]
[388347605,1759114246725,-352.05426367,0.00025991,2]
[388347607,1759114246734,-333.55653425,0.00025991,2]
[388347609,1759114246743,-235.41269194,0.00026097,2]
[388347610,1759114246752,-600.40176165,0.00026434,2]
[388347612,1759114246762,-1000.0,0.00026575,10]
[388347614,1759114246771,-1000.0,0.00026575,10]
[388347616,1759114246780,-1000.0,0.00026575,10]
[388347618,1759114246790,-1000.0,0.00026575,10]
[388347620,1759114246800,-1000.0,0.00026575,10]
[388347622,1759114246810,-300.67534938,0.00026575,10]
[388347624,1759114246819,-233.06,0.000266,2]
[388347626,1759114246829,-174.91,0.000266,2]
[388347628,1759114246838,-367.46449883,0.00026632,2]
[388347630,1759114246849,-229.71285095,0.00026852,5]
[388347632,1759114246858,-325.12223516,0.00026852,5]
[388347634,1759114246867,-324.85263855,0.00026852,5]
[388347636,1759114246876,-3684.44684397,0.00026909,2]
[388347638,1759114246886,-460.51,0.00026936,2]
[388347640,1759114246895,-1067.3809096,0.0002698,2]
[388347642,1759114246904,-340.151,0.00027094,15]
[388347644,1759114246913,-153.0,0.00027267,2]
[388347646,1759114246922,-153.0,0.00027267,2]
[388347648,1759114246931,-502.5642907,0.00027295,2]
[388347650,1759114246940,-390.7053389,0.00027295,2]
[388347651,1759114246952,-390.7053389,0.00027295,2]
[388347653,1759114246961,-390.7053389,0.00027295,2]
[388347655,1759114246970,-399.8299148,0.00027295,2]
[388347657,1759114246980,-480.0,0.00027397,7]
[388347659,1759114246989,-160.0,0.00027397,7]
[388347661,1759114246999,-400.0,0.00027397,7]
[388347663,1759114247009,-480.0,0.00027397,7]
[388347665,1759114247019,-480.0,0.00027397,7]
[388347667,1759114247028,-481.68614414,0.00027397,7]
[388347669,1759114247037,-480.0,0.00027397,7]
[388347671,1759114247046,-480.0,0.00027397,7]
[388347672,1759114247057,-480.0,0.00027397,7]
[388347674,1759114247067,-660.32,0.00027397,7]
[388347676,1759114247076,-480.0,0.00027397,7]
[388347678,1759114247086,-480.0,0.00027397,7]
[388347679,1759114247096,-480.0,0.00027397,7]
[388347681,1759114247105,-480.0,0.00027397,7]
[388347683,1759114247115,-480.0,0.00027397,7]
[388347685,1759114247124,-480.0,0.00027397,7]
[388347687,1759114247133,-793.42,0.00027397,7]
[388347689,1759114247143,-480.0,0.00027397,7]
[388347691,1759114247152,-480.0,0.00027397,7]
[388347693,1759114247161,-480.0,0.00027397,7]
[388347695,1759114247170,-480.0,0.00027397,7]
[388347697,1759114247180,-480.0,0.00027397,7]
[388347699,1759114247189,-480.0,0.00027397,7]
[388347701,1759114247198,-579.57403187,0.00027397,7]
[388347703,1759114247212,-480.0,0.00027397,7]
[388347705,1759114247221,-480.0,0.00027397,7]
[388347707,1759114247231,-480.0,0.00027397,7]
[388347709,1759114247241,-480.0,0.00027397,7]
[388347711,1759114247251,-728.38,0.00027397,7]
[388347712,1759114247260,-480.0,0.00027397,7]
[388347714,1759114247270,-481.1241951,0.00027397,7]
[388347716,1759114247280,-480.0,0.00027397,7]
[388347718,1759114247289,-480.0,0.00027397,7]
[388347720,1759114247299,-480.0,0.00027397,7]
[388347722,1759114247308,-466.90245423,0.00027397,7]
[388347724,1759114247318,-655.0,0.00027397,7]
[388347726,1759114247327,-480.0,0.00027397,7]
[388347728,1759114247338,-349.72463355,0.00027397,7]
[388347730,1759114247347,-480.0,0.00027397,7]
[388347732,1759114247357,-480.0,0.00027397,7]
[388347734,1759114247366,-480.0,0.00027397,7]
[388347736,1759114247375,-500.0,0.00027397,7]
[388347738,1759114247385,-862.34,0.00027397,7]
[388347740,1759114247394,-480.0,0.00027397,7]
[388347742,1759114247404,-1000.0,0.00027397,7]
[388347744,1759114247413,-400.23190222,0.00027397,7]
[388347746,1759114247423,-480.0,0.00027397,7]
[388347747,1759114247432,-480.0,0.00027397,7]
[388347749,1759114247441,-233.34097534,0.00027397,7]
[388347750,1759114247450,-480.0,0.00027397,7]
[388347751,1759114247460,-480.0,0.00027397,7]
[388347752,1759114247469,-480.0,0.00027397,7]
[388347753,1759114247478,-480.0,0.00027397,7]
[388347754,1759114247487,-507.66,0.00027397,7]
[388347755,1759114247497,-485.08986271,0.00027397,7]
[388347756,1759114247510,-480.0,0.00027397,7]
[388347757,1759114247519,-480.0,0.00027397,7]
[388347758,1759114247529,-829.64,0.00027397,7]
[388347759,1759114247538,-480.0,0.00027397,7]
[388347760,1759114247547,-480.0,0.00027397,7]
[388347761,1759114247556,-480.0,0.00027397,7]
[388347762,1759114247566,-480.0,0.00027397,7]
[388347763,1759114247575,-480.0,0.00027397,7]
[388347764,1759114247584,-480.0,0.00027397,7]
[388347765,1759114247593,-480.0,0.00027397,7]
[388347766,1759114247603,-480.0,0.00027397,7]
[388347767,1759114247612,-151.0,0.00027397,7]
[388347768,1759114247621,-789.51,0.00027397,7]
[388347769,1759114247630,-480.0,0.00027397,7]
[388347770,1759114247681,-480.0,0.00027397,7]
[388347771,1759114247690,-480.0,0.00027397,7]
[388347772,1759114247700,-480.0,0.00027397,7]
[388347773,1759114247709,-480.0,0.00027397,7]
[388347774,1759114247719,-577.08,0.00027397,7]
[388347775,1759114247728,-480.0,0.00027397,7]
[388347776,1759114247737,-480.0,0.00027397,7]
[388347777,1759114247747,-480.0,0.00027397,7]
[388347778,1759114247756,-656.17,0.00027397,7]
[388347779,1759114247766,-480.0,0.00027397,7]
[388347780,1759114247775,-480.0,0.00027397,7]
[388347781,1759114247785,-480.0,0.00027397,7]
[388347782,1759114247795,-488.19,0.00027397,7]
[388347783,1759114247805,-480.0,0.00027397,7]
[388347784,1759114247815,-480.0,0.00027397,7]
[388347785,1759114247824,-579.15,0.00027397,7]
[388347786,1759114247834,-480.0,0.00027397,7]
[388347787,1759114247843,-480.0,0.00027397,7]
[388347788,1759114247852,-480.0,0.00027397,7]
[388347789,1759114247862,-480.0,0.00027397,7]
[388347790,1759114247871,-480.0,0.00027397,7]
[388347791,1759114247880,-480.0,0.00027397,7]
[388347792,1759114247889,-544.63,0.00027397,7]
[388347793,1759114247899,-480.0,0.00027397,7]
[388347794,1759114247909,-480.0,0.00027397,7]
[388347795,1759114247918,-481.9664857,0.00027397,7]
[388347796,1759114247928,-738.42,0.00027397,7]
[388347798,1759114247938,-724.58,0.00027397,7]
[388347799,1759114247947,-500.0,0.00027397,7]
[388347800,1759114247957,-500.0,0.00027397,7]
[388347801,1759114247966,-500.0,0.00027397,7]
[388347802,1759114247976,-480.0,0.00027397,7]
[388347804,1759114247985,-480.0,0.00027397,7]
[388347806,1759114247994,-480.0,0.00027397,7]
[388347808,1759114248003,-512.32,0.00027397,7]
[388347810,1759114248012,-480.87303557,0.00027397,7]
[388347812,1759114248023,-480.0,0.00027397,7]
[388347814,1759114248032,-480.0,0.00027397,7]
[388347816,1759114248042,-520.0,0.00027397,3]
[388347818,1759114248051,-480.0,0.00027397,7]
[388347819,1759114248062,-480.0,0.00027397,7]
[388347821,1759114248071,-480.0,0.00027397,7]
[388347823,1759114248081,-563.05,0.00027397,7]
[388347825,1759114248091,-480.0,0.00027397,7]
[388347827,1759114248100,-480.0,0.00027397,7]
[388347829,1759114248109,-151.733038,0.00027397,7]
[388347831,1759114248119,-499.12196875,0.00027397,7]
[388347833,1759114248128,-480.0,0.00027397,7]
[388347835,1759114248137,-480.0,0.00027397,7]
[388347836,1759114248146,-480.0,0.00027397,7]
[388347838,1759114248155,-685.78,0.00027397,7]
[388347840,1759114248165,-479.0927907,0.00027397,7]
[388347842,1759114248174,-480.0,0.00027397,7]
[388347844,1759114248184,-480.0,0.00027397,7]
[388347846,1759114248193,-480.0,0.00027397,7]
[388347848,1759114248205,-480.0,0.00027397,7]
[388347850,1759114248215,-480.0,0.00027397,7]
[388347852,1759114248224,-480.0,0.00027397,7]
[388347854,1759114248233,-550.15,0.00027397,7]
[388347856,1759114248243,-660.0,0.00027397,7]
[388347857,1759114248253,-480.0,0.00027397,7]
[388347859,1759114248262,-480.0,0.00027397,7]
[388347861,1759114248271,-580.99,0.00027397,7]
[388347863,1759114248283,-970.06,0.00027397,7]
[388347865,1759114248293,-480.0,0.00027397,7]
[388347867,1759114248302,-480.0,0.00027397,7]
[388347869,1759114248311,-480.0,0.00027397,7]
[388347871,1759114248320,-480.0,0.00027397,7]
[388347873,1759114248330,-480.0,0.00027397,7]
[388347875,1759114248339,-480.0,0.00027397,7]
[388347877,1759114248347,-480.0,0.00027397,7]
[388347879,1759114248357,-480.0,0.00027397,7]
[388347880,1759114248366,-710.39,0.00027397,7]
[388347882,1759114248375,-838.3,0.00027397,7]
[388347884,1759114248385,-480.0,0.00027397,7]
[388347886,1759114248395,-484.31,0.00027397,7]
[388347888,1759114248403,-480.0,0.00027397,7]
[388347890,1759114248413,-477.90656898,0.00027397,7]
[388347892,1759114248422,-480.0,0.00027397,7]
[388347894,1759114248432,-698.13,0.00027397,7]
[388347896,1759114248441,-480.0,0.00027397,7]
[388347898,1759114248451,-480.0,0.00027397,7]
[388347900,1759114248461,-545.49,0.00027397,7]
[388347902,1759114248471,-1006.76,0.00027397,7]
[388347904,1759114248480,-486.83,0.00027397,7]
[388347906,1759114248489,-607.25,0.00027397,7]
[388347908,1759114248498,-502.04,0.00027397,7]
[388347910,1759114248508,-480.0,0.00027397,7]
[388347912,1759114248517,-480.0,0.00027397,7]
[388347914,1759114248527,-480.0,0.00027397,7]
[388347916,1759114248536,-480.0,0.00027397,7]
[388347917,1759114248545,-480.0,0.00027397,7]
[388347919,1759114248555,-809.57,0.00027397,7]
[388347921,1759114248564,-795.75,0.00027397,7]
[388347923,1759114248573,-480.0,0.00027397,7]
[388347925,1759114248582,-470.0,0.00027397,7]
[388347927,1759114248592,-480.0,0.00027397,7]
[388347929,1759114248602,-846.56,0.00027397,7]
[388347931,1759114248611,-498.95,0.00027397,7]
[388347933,1759114248621,-599.53,0.00027397,7]
[388347935,1759114248630,-606.87,0.00027397,7]
[388347937,1759114248640,-480.0,0.00027397,7]
[388347939,1759114248650,-480.0,0.00027397,7]
[388347941,1759114248659,-480.0,0.00027397,7]
[388347943,1759114248668,-480.0,0.00027397,7]
[388347944,1759114248678,-772.06,0.00027397,7]
[388347946,1759114248688,-480.0,0.00027397,7]
[388347948,1759114248697,-480.0,0.00027397,7]
[388347950,1759114248706,-530.29101034,0.00027397,7]
[388347952,1759114248716,-151.0,0.00027397,7]
[388347954,1759114248724,-480.0,0.00027397,7]
[388347956,1759114248733,-480.0,0.00027397,7]
[388347958,1759114248742,-716.61,0.00027397,7]
[388347960,1759114248752,-481.34163755,0.00027397,7]
[388347962,1759114248761,-480.0,0.00027397,7]
[388347964,1759114248770,-1216.72,0.00027397,7]
[388347966,1759114248779,-808.87,0.00027397,7]
[388347968,1759114248789,-480.0,0.00027397,7]
[388347969,1759114248798,-481.18802518,0.00027397,7]
[388347971,1759114248807,-480.0,0.00027397,7]
[388347973,1759114248817,-1452.33,0.00027397,7]
[388347975,1759114248827,-183.87472264,0.00027397,7]
[388347977,1759114248836,-480.0,0.00027397,7]
[388347979,1759114248845,-873.01,0.00027397,7]
[388347981,1759114248855,-655.8,0.00027397,7]
[388347983,1759114248864,-1290.66,0.00027397,7]
[388347985,1759114248874,-921.55,0.00027397,7]
[388347987,1759114248883,-480.0,0.00027397,7]
[388347989,1759114248892,-480.0,0.00027397,7]
[388347991,1759114248901,-519.86,0.00027397,7]
[388347993,1759114248910,-480.0,0.00027397,7]
[388347995,1759114248919,-555.68,0.00027397,7]
[388347996,1759114248928,-705.17,0.00027397,7]
[388347998,1759114248937,-481.33287371,0.00027397,7]
[388348000,1759114248946,-152.23786,0.00027397,7]
[388348002,1759114248956,-866.83,0.00027397,7]
[388348004,1759114248965,-480.0,0.00027397,7]
[388348006,1759114248974,-518.7,0.00027397,7]
[388348008,1759114248983,-266.80394635,0.00027397,7]
[388348010,1759114248992,-480.0,0.00027397,7]
[388348012,1759114249001,-480.0,0.00027397,7]
[388348014,1759114249010,-480.0,0.00027397,7]
[388348016,1759114249019,-480.0,0.00027397,7]
[388348017,1759114249028,-744.19,0.00027397,7]
[388348019,1759114249037,-480.0,0.00027397,7]
[388348021,1759114249046,-481.59829173,0.00027397,7]
[388348023,1759114249055,-480.0,0.00027397,7]
[388348025,1759114249064,-480.0,0.00027397,7]
[388348027,1759114249073,-953.71,0.00027397,7]
[388348029,1759114249081,-480.0,0.00027397,7]
[388348031,1759114249090,-480.0,0.00027397,7]
[388348033,1759114249099,-480.0,0.00027397,7]
[388348035,1759114249108,-2402.6,0.00027397,7]
[388348037,1759114249117,-480.0,0.00027397,7]
[388348039,1759114249126,-481.09,0.00027397,7]
[388348041,1759114249135,-1645.19,0.00027397,7]
[388348043,1759114249144,-481.59151108,0.00027397,7]
[388348044,1759114249153,-151.0,0.00027397,7]
[388348046,1759114249162,-294.417035,0.00027397,7]
[388348048,1759114249170,-480.0,0.00027397,7]
[388348050,1759114249180,-500.0,0.00027397,7]
[388348052,1759114249188,-480.0,0.00027397,7]
[388348054,1759114249198,-480.0,0.00027397,7]
[388348056,1759114249211,-481.43655962,0.00027397,7]
[388348058,1759114249220,-1337.68,0.00027397,7]
[388348060,1759114249230,-636.21,0.00027397,7]
[388348062,1759114249239,-480.0,0.00027397,7]
[388348064,1759114249251,-480.0,0.00027397,7]
[388348066,1759114249260,-692.6,0.00027397,7]
[388348068,1759114249269,-480.0,0.00027397,7]
[388348070,1759114249280,-480.0,0.00027397,7]
[388348072,1759114249289,-480.0,0.00027397,7]
[388348074,1759114249298,-2677.62,0.00027397,7]
[388348076,1759114249307,-1325.94,0.00027397,7]
[388348078,1759114249317,-480.0,0.00027397,7]
[388348080,1759114249327,-738.68,0.00027397,7]
[388348082,1759114249336,-500.0,0.00027397,7]
[388348084,1759114249345,-610.97,0.00027397,7]
[388348086,1759114249355,-871.91,0.00027397,7]
[388348088,1759114249364,-480.0,0.00027397,7]
[388348090,1759114249373,-510.6,0.00027397,7]
[388348091,1759114249383,-480.0,0.00027397,7]
[388348093,1759114249392,-480.0,0.00027397,7]
[388348095,1759114249401,-784.04,0.00027397,7]
[388348097,1759114249410,-151.0,0.00027397,7]
[388348099,1759114249419,-480.0,0.00027397,7]
[388348101,1759114249428,-482.07037282,0.00027397,7]
[388348103,1759114249437,-480.0,0.00027397,7]
[388348105,1759114249446,-1229.66,0.00027397,7]
[388348107,1759114249455,-653.48,0.00027397,7]
[388348109,1759114249464,-480.0,0.00027397,7]
[388348111,1759114249474,-480.0,0.00027397,7]
[388348113,1759114249483,-893.99,0.00027397,7]
[388348115,1759114249493,-679.22,0.00027397,7]
[388348117,1759114249503,-151.0,0.00027397,7]
[388348119,1759114249512,-156.908588,0.00027397,7]
[388348121,1759114249521,-690.63,0.00027397,7]
[388348123,1759114249531,-480.0,0.00027397,7]
[388348124,1759114249539,-610.71,0.00027397,7]
[388348126,1759114249549,-151.0,0.00027397,7]
[388348128,1759114249558,-151.0,0.00027397,7]
[388348130,1759114249568,-2730.23,0.00027397,7]
[388348132,1759114249577,-480.0,0.00027397,7]
[388348134,1759114249587,-151.0,0.00027397,7]
[388348136,1759114249595,-151.0,0.00027397,7]
[388348138,1759114249604,-647.87,0.00027397,7]
[388348140,1759114249613,-480.0,0.00027397,7]
[388348142,1759114249622,-480.0,0.00027397,7]
[388348144,1759114249631,-480.0,0.00027397,7]
[388348146,1759114249640,-480.0,0.00027397,7]
[388348147,1759114249649,-1222.91,0.00027397,7]
[388348149,1759114249658,-480.0,0.00027397,7]
[388348151,1759114249667,-480.0,0.00027397,7]
[388348153,1759114249677,-860.09,0.00027397,7]
[388348155,1759114249686,-2024.56,0.00027397,7]
[388348157,1759114249695,-553.97,0.00027397,7]
[388348159,1759114249705,-689.08,0.00027397,7]
[388348161,1759114249714,-480.0,0.00027397,7]
[388348163,1759114249723,-1326.02,0.00027397,7]
[388348164,1759114249733,-480.0,0.00027397,7]
[388348166,1759114249742,-480.0,0.00027397,7]
[388348168,1759114249758,-480.0,0.00027397,7]
[388348170,1759114249767,-997.83,0.00027397,7]
[388348172,1759114249777,-480.0,0.00027397,7]
[388348174,1759114249786,-480.0,0.00027397,7]
[388348176,1759114249794,-480.0,0.00027397,7]
[388348178,1759114249804,-779.64,0.00027397,7]
[388348180,1759114249813,-480.0,0.00027397,7]
[388348182,1759114249823,-151.0,0.00027397,7]
[388348184,1759114249832,-480.0,0.00027397,7]
[388348186,1759114249841,-151.0,0.00027397,7]
[388348188,1759114249850,-645.84,0.00027397,7]
[388348189,1759114249860,-480.0,0.00027397,7]
[388348191,1759114249869,-814.35,0.00027397,7]
[388348193,1759114249878,-3019.76,0.00027397,7]
[388348195,1759114249888,-480.0,0.00027397,7]
[388348197,1759114249897,-233.17907547,0.00027397,7]
[388348199,1759114249907,-481.32425474,0.00027397,7]
[388348201,1759114249916,-858.56,0.00027397,7]
[388348203,1759114249926,-729.35,0.00027397,7]
[388348205,1759114249935,-797.07,0.00027397,7]
[388348207,1759114249945,-1293.62,0.00027397,7]
[388348209,1759114249955,-939.24,0.00027397,7]
[388348211,1759114249964,-480.0,0.00027397,7]
[388348213,1759114249973,-480.0,0.00027397,7]
[388348215,1759114249985,-1022.46,0.00027397,7]
[388348217,1759114249999,-665.25,0.00027397,7]
[388348219,1759114250008,-530.46,0.00027397,7]
[388348221,1759114250019,-480.0,0.00027397,7]
[388348223,1759114250028,-480.0,0.00027397,7]
[388348225,1759114250038,-480.0,0.00027397,7]
[388348227,1759114250047,-860.7,0.00027397,7]
[388348229,1759114250057,-776.39,0.00027397,7]
[388348231,1759114250067,-496.76,0.00027397,7]
[388348233,1759114250077,-480.0,0.00027397,7]
[388348235,1759114250088,-531.52,0.00027397,7]
[388348237,1759114250099,-1762.46,0.00027397,7]
[388348239,1759114250109,-1220.95,0.00027397,7]
[388348241,1759114250119,-480.0,0.00027397,7]
[388348243,1759114250128,-943.44,0.00027397,7]
[388348245,1759114250138,-614.43,0.00027397,7]
[388348247,1759114250147,-3651.09,0.00027397,7]
[388348249,1759114250157,-480.0,0.00027397,7]
[388348251,1759114250167,-602.8,0.00027397,7]
[388348253,1759114250177,-1928.68,0.00027397,7]
[388348255,1759114250186,-480.0,0.00027397,7]
[388348256,1759114250196,-3009.17,0.00027397,7]
[388348258,1759114250210,-567.21,0.00027397,7]
[388348259,1759114250220,-618.63,0.00027397,7]
[388348261,1759114250230,-865.82,0.00027397,7]
[388348262,1759114250239,-723.97,0.00027397,7]
[388348264,1759114250251,-480.0,0.00027397,7]
[388348266,1759114250261,-892.96,0.00027397,7]
[388348267,1759114250270,-480.0,0.00027397,7]
[388348269,1759114250282,-480.0,0.00027397,7]
[388348270,1759114250291,-1863.87,0.00027397,7]
[388348272,1759114250300,-514.37,0.00027397,7]
[388348273,1759114250310,-829.66,0.00027397,7]
[388348275,1759114250320,-480.0,0.00027397,7]
[388348277,1759114250329,-762.0,0.00027397,7]
[388348278,1759114250339,-480.0,0.00027397,7]
[388348280,1759114250348,-480.0,0.00027397,7]
[388348281,1759114250358,-1808.09,0.00027397,7]
[388348283,1759114250367,-654.29,0.00027397,7]
[388348284,1759114250377,-480.0,0.00027397,7]
[388348286,1759114250386,-480.0,0.00027397,7]
[388348287,1759114250396,-1564.43,0.00027397,7]
[388348289,1759114250405,-583.84,0.00027397,7]
[388348290,1759114250414,-480.0,0.00027397,7]
[388348292,1759114250424,-480.0,0.00027397,7]
[388348293,1759114250434,-480.0,0.00027397,7]
[388348295,1759114250444,-1207.15,0.00027397,7]
[388348297,1759114250453,-480.0,0.00027397,7]
[388348298,1759114250463,-480.0,0.00027397,7]
[388348300,1759114250472,-480.0,0.00027397,7]
[388348301,1759114250482,-728.44,0.00027397,7]
[388348303,1759114250492,-1161.47,0.00027397,7]
[388348304,1759114250502,-499.46,0.00027397,7]
[388348306,1759114250511,-480.0,0.00027397,7]
[388348308,1759114250520,-1006.56,0.00027397,7]
[388348309,1759114250530,-171.474348,0.00027397,7]
[388348311,1759114250539,-171.474348,0.00027397,7]
[388348312,1759114250549,-1127.5,0.00027397,7]
[388348314,1759114250559,-171.474348,0.00027397,7]
[388348316,1759114250569,-171.474348,0.00027397,7]
[388348318,1759114250578,-171.474348,0.00027397,7]
[388348319,1759114250587,-480.0,0.00027397,7]
[388348321,1759114250597,-171.474348,0.00027397,7]
[388348322,1759114250606,-815.86,0.00027397,7]
[388348324,1759114250616,-4227.58,0.00027397,7]
[388348326,1759114250626,-344.53714551,0.00027397,7]
[388348327,1759114250635,-171.474348,0.00027397,7]
[388348329,1759114250645,-171.474348,0.00027397,7]
[388348331,1759114250655,-864.3,0.00027397,7]
[388348332,1759114250664,-480.0,0.00027397,7]
[388348334,1759114250673,-480.0,0.00027397,7]
[388348335,1759114250683,-480.0,0.00027397,7]
[388348337,1759114250693,-480.0,0.00027397,7]
[388348339,1759114250703,-480.0,0.00027397,7]
[388348340,1759114250712,-840.74,0.00027397,7]
[388348342,1759114250721,-8267.15,0.00027397,7]
[388348343,1759114250731,-480.0,0.00027397,7]
[388348344,1759114250740,-759.09,0.00027397,7]
[388348346,1759114250750,-480.0,0.00027397,7]
[388348347,1759114250760,-871.09,0.00027397,7]
[388348349,1759114250769,-480.0,0.00027397,7]
[388348351,1759114250779,-784.46,0.00027397,7]
[388348352,1759114250789,-664.53,0.00027397,7]
[388348354,1759114250798,-1508.74,0.00027397,7]
[388348355,1759114250808,-1364.05,0.00027397,7]
[388348357,1759114250818,-480.0,0.00027397,7]
[388348359,1759114250827,-1816.42,0.00027397,7]
[388348360,1759114250837,-480.0,0.00027397,7]
[388348362,1759114250846,-480.0,0.00027397,7]
[388348363,1759114250857,-889.59,0.00027397,7]
[388348365,1759114250866,-1570.89,0.00027397,7]
[388348367,1759114250876,-526.45,0.00027397,7]
[388348368,1759114250885,-536.72811761,0.00027397,7]
[388348370,1759114250895,-480.0,0.00027397,7]
[388348372,1759114250905,-151.0,0.00027397,7]
[388348373,1759114250914,-690.77,0.00027397,7]
[388348375,1759114250924,-728.82,0.00027397,7]
[388348376,1759114250933,-480.0,0.00027397,7]
[388348378,1759114250947,-480.0,0.00027397,7]
[388348380,1759114250959,-480.0,0.00027397,7]
[388348381,1759114250975,-480.0,0.00027397,7]
[388348383,1759114250987,-4383.15,0.00027397,7]
[388348385,1759114250997,-480.0,0.00027397,7]
[388348387,1759114251008,-480.0,0.00027397,7]
[388348388,1759114251018,-480.0,0.00027397,7]
[388348390,1759114251027,-480.0,0.00027397,7]
[388348392,1759114251040,-721.14,0.00027397,7]
[388348393,1759114251049,-480.0,0.00027397,7]
[388348395,1759114251059,-880.67,0.00027397,7]
[388348397,1759114251069,-770.72,0.00027397,7]
[388348398,1759114251079,-480.0,0.00027397,7]
[388348400,1759114251088,-4924.89,0.00027397,7]
[388348401,1759114251098,-480.0,0.00027397,7]
[388348403,1759114251108,-480.0,0.00027397,7]
[388348405,1759114251118,-152.3281,0.00027397,7]
[388348406,1759114251127,-480.0,0.00027397,7]
[388348408,1759114251136,-480.0,0.00027397,7]
[388348410,1759114251148,-1684.24,0.00027397,7]
[388348412,1759114251157,-3341.87,0.00027397,7]
[388348413,1759114251167,-7598.07,0.00027397,7]
[388348415,1759114251176,-480.0,0.00027397,7]
[388348416,1759114251185,-480.0,0.00027397,7]
[388348418,1759114251195,-480.0,0.00027397,7]
[388348420,1759114251208,-480.0,0.00027397,7]
[388348421,1759114251217,-243.03515227,0.00027397,7]
[388348423,1759114251227,-2047.39,0.00027397,7]
[388348425,1759114251237,-564.89,0.00027397,7]
[388348426,1759114251247,-480.0,0.00027397,7]
[388348428,1759114251256,-480.0,0.00027397,7]
[388348430,1759114251266,-480.0,0.00027397,7]
[388348431,1759114251275,-480.0,0.00027397,7]
[388348433,1759114251286,-3510.01,0.00027397,7]
[388348435,1759114251295,-1155.42,0.00027397,7]
[388348436,1759114251305,-480.0,0.00027397,7]
[388348438,1759114251315,-151.0,0.00027397,7]
[388348440,1759114251324,-151.0,0.00027397,7]
[388348441,1759114251334,-916.87,0.00027397,7]
[388348443,1759114251344,-879.44,0.00027397,7]
[388348445,1759114251353,-481.07089848,0.00027397,7]
[388348446,1759114251363,-481.15630154,0.00027397,7]
[388348448,1759114251373,-1824.21,0.00027397,7]
[388348450,1759114251382,-480.0,0.00027397,7]
[388348451,1759114251392,-774.21,0.00027397,7]
[388348453,1759114251402,-480.0,0.00027397,7]
[388348455,1759114251412,-1142.13,0.00027397,7]
[388348456,1759114251421,-480.0,0.00027397,7]
[388348458,1759114251431,-904.58,0.00027397,7]
[388348460,1759114251440,-889.1,0.00027397,7]